bitfinex/quotes_BTCUSD_20240929
["timestamp","ask_amount","ask_price","bid_price","bid_amount"]
[1727652588381,0.02551787,65696.0,65695.0,0.2072449]
[1727652588687,0.001654,65696.0,65695.0,0.2072449]
[1727652588942,0.001654,65696.0,65695.0,0.20957345]
[1727652593485,0.001654,65696.0,65695.0,0.2072449]
[1727652594184,0.123427,65696.0,65695.0,0.2072449]
[1727652598134,0.123427,65696.0,65695.0,0.1988]
[1727652598616,0.123427,65696.0,65695.0,0.20714567]
[1727652599596,0.14729109,65696.0,65695.0,0.20714567]
[1727652599857,0.14729109,65696.0,65695.0,0.03834567]
[1727652600400,0.23916372,65696.0,65695.0,0.03834567]
[1727652600898,0.21529963,65696.0,65695.0,0.03834567]
[1727652601126,0.21529963,65696.0,65695.0,0.01534567]
[1727652603779,0.23916541,65696.0,65695.0,0.01534567]
[1727652604040,0.21529963,65696.0,65695.0,0.01534567]
[1727652604811,0.123427,65696.0,65695.0,0.01534567]
[1727652606280,0.21529963,65696.0,65695.0,0.01534567]
[1727652606787,0.26070091,65696.0,65695.0,0.01534567]
[1727652607023,0.28456673,65696.0,65695.0,0.01534567]
[1727652607520,0.26070091,65696.0,65695.0,0.01617267]
[1727652607774,0.2605177,65696.0,65695.0,0.01617267]
[1727652608749,0.21511642,65696.0,65695.0,0.01617267]
[1727652609719,0.28321834,65696.0,65695.0,0.01617267]
[1727652610216,0.21511642,65696.0,65695.0,0.01617267]
[1727652610681,0.3070841,65696.0,65695.0,0.01617267]
[1727652611677,0.23898218,65696.0,65695.0,0.01617267]
[1727652612601,0.32978475,65696.0,65695.0,0.01617267]
[1727652613609,0.21511642,65696.0,65695.0,0.01617267]
[1727652613839,0.60277401,65696.0,65695.0,0.01617267]
[1727652614084,0.39914379,65696.0,65695.0,0.01617267]
[1727652614310,0.22324379,65696.0,65695.0,0.01617267]
[1727652615021,0.5328524,65696.0,65695.0,0.01317267]
[1727652615255,0.5328524,65696.0,65695.0,0.00917267]
[1727652615256,0.68313466,65696.0,65695.0,0.00917267]
[1727652615554,0.55482605,65696.0,65695.0,0.00917267]
[1727652615806,0.55082605,65696.0,65695.0,0.00917267]
[1727652616007,0.55482605,65696.0,65695.0,0.00917267]
[1727652616717,0.58269324,65696.0,65695.0,0.00917267]
[1727652617830,0.58269324,65696.0,65695.0,0.000827]
[1727652620971,0.55882605,65696.0,65695.0,0.000827]
[1727652621207,0.58269375,65696.0,65695.0,0.000827]
[1727652623555,0.58469375,65696.0,65695.0,0.000827]
[1727652624030,0.55882605,65696.0,65695.0,0.000827]
[1727652625707,0.56082605,65696.0,65695.0,0.000827]
[1727652627380,0.58469396,65696.0,65695.0,0.000827]
[1727652628372,0.56082605,65696.0,65695.0,0.000827]
[1727652629345,0.40854379,65696.0,65695.0,0.000827]
[1727652630237,0.33084379,65696.0,65695.0,0.000827]
[1727652630469,0.32711642,65696.0,65695.0,0.000827]
[1727652631455,0.35098424,65696.0,65695.0,0.000827]
[1727652632456,0.25911161,65696.0,65695.0,0.000827]
[1727652632699,0.15911161,65696.0,65695.0,0.195327]
[1727652632959,0.03733861,65696.0,65695.0,0.40897363]
[1727652633263,0.03733861,65696.0,65695.0,0.28719963]
[1727652633467,0.03733861,65696.0,65695.0,0.29437425]
[1727652633731,0.03733861,65696.0,65695.0,0.32427562]
[1727652633962,0.03333861,65696.0,65695.0,0.20250162]
[1727652634219,0.01347079,65696.0,65695.0,0.20250162]
[1727652634752,0.13124379,65696.0,65695.0,0.20250162]
[1727652634976,0.12724379,65696.0,65695.0,0.20250162]
[1727652635222,0.12324379,65696.0,65695.0,0.195327]
[1727652635467,0.12424379,65696.0,65695.0,0.20527461]
[1727652635961,0.12524379,65696.0,65695.0,0.21027461]
[1727652636218,0.12424379,65696.0,65695.0,0.20727461]
[1727652636464,0.12424379,65696.0,65695.0,0.200327]
[1727652636694,0.12324379,65696.0,65695.0,0.20227461]
[1727652637181,0.12424379,65696.0,65695.0,0.21027461]
[1727652637472,0.12524379,65696.0,65695.0,0.21027461]
[1727652638194,0.00347079,65696.0,65695.0,0.21027461]
[1727652638428,0.12524379,65696.0,65695.0,0.21027461]
[1727652640114,0.00347079,65696.0,65695.0,0.21027461]
[1727652640345,0.12524379,65696.0,65695.0,0.21027461]
[1727652640583,0.00347079,65696.0,65695.0,0.21027461]
[1727652640837,0.12524379,65696.0,65695.0,0.21027461]
[1727652641323,0.00347079,65696.0,65695.0,0.21027461]
[1727652642289,0.12524379,65696.0,65695.0,0.21027461]
[1727652642517,0.00347079,65696.0,65695.0,0.21027461]
[1727652642744,0.00347079,65696.0,65695.0,0.203327]
[1727652643204,0.00347079,65696.0,65695.0,0.21027461]
[1727652644145,0.12524379,65696.0,65695.0,0.21027461]
[1727652644617,0.12524379,65696.0,65695.0,0.203327]
[1727652645066,0.00347079,65696.0,65695.0,0.203327]
[1727652645309,0.12524379,65696.0,65695.0,0.21029323]
[1727652646248,0.12524379,65696.0,65695.0,0.008827]
[1727652646733,0.26528312,65696.0,65695.0,0.008827]
[1727652647269,0.30967638,65696.0,65695.0,0.005827]
[1727652647496,0.31067638,65696.0,65695.0,0.008827]
[1727652647721,0.30967638,65696.0,65695.0,0.003827]
[1727652647959,0.30867638,65696.0,65695.0,0.000827]
[1727652648190,0.30967638,65696.0,65695.0,0.008827]
[1727652648414,0.26428312,65696.0,65695.0,0.003827]
[1727652648650,0.26428312,65696.0,65695.0,0.007827]
[1727652648893,0.33236818,65696.0,65695.0,0.007827]
[1727652650089,0.12424379,65696.0,65695.0,0.007827]
[1727652650343,0.12424379,65696.0,65695.0,0.109127]
[1727652650344,0.14810871,65696.0,65695.0,0.109127]
[1727652650822,0.14810871,65696.0,65695.0,0.030827]
[1727652651531,0.14810871,65696.0,65695.0,0.0378609]
[1727652651759,0.14810871,65696.0,65695.0,0.030827]
[1727652652243,0.02633571,65696.0,65695.0,0.126427]
[1727652652493,0.02633571,65696.0,65695.0,0.3383349]
[1727652652722,0.00247079,65696.0,65695.0,0.3383349]
[1727652652953,0.00247079,65696.0,65695.0,0.2165609]
[1727652653434,0.00247079,65696.0,65695.0,0.2135609]
[1727652653854,0.00247079,65696.0,65695.0,0.3383349]
[1727652654122,0.00147079,65696.0,65695.0,0.3313349]
[1727652654353,0.00247079,65696.0,65695.0,0.3403349]
[1727652654580,0.00347079,65696.0,65695.0,0.3463349]
[1727652656189,0.00347079,65696.0,65695.0,0.34966034]
[1727652660829,0.00347079,65696.0,65695.0,0.22788634]
[1727652661334,0.14910581,65696.0,65695.0,0.04918634]
[1727652662072,0.14910581,65696.0,65695.0,0.015827]
[1727652663015,0.14710581,65696.0,65695.0,0.000827]
[1727652663508,0.14710581,65696.0,65695.0,0.006827]
[1727652663979,0.12324379,65696.0,65695.0,0.006827]
[1727652664227,0.222632,65696.0,65695.0,0.006827]
[1727652664469,0.299232,65696.0,65695.0,0.006827]
[1727652664696,0.34459238,65696.0,65695.0,0.006827]
[1727652665160,0.24520417,65696.0,65695.0,0.006827]
[1727652665431,0.39056456,65696.0,65695.0,0.006827]
[1727652665658,0.29984379,65696.0,65695.0,0.006827]
[1727652666127,0.29984379,65696.0,65695.0,0.003827]
[1727652666353,0.29984379,65696.0,65695.0,0.000827]
[1727652666609,0.449178,65696.0,65695.0,0.000827]
[1727652666866,0.445178,65696.0,65695.0,0.000827]
[1727652667110,0.441178,65696.0,65695.0,0.000827]
[1727652667351,0.45799073,65696.0,65695.0,0.000827]
[1727652667814,0.45999073,65696.0,65695.0,0.000827]
[1727652668268,0.46799073,65696.0,65695.0,0.000827]
[1727652668494,0.49185808,65696.0,65695.0,0.000827]
[1727652668945,0.48985808,65696.0,65695.0,0.000827]
[1727652669488,0.33971114,65696.0,65695.0,0.000827]
[1727652670156,0.31584379,65696.0,65695.0,0.000827]
[1727652672856,0.35263775,65696.0,65695.0,0.000827]
[1727652673103,0.23924379,65696.0,65695.0,0.000827]
[1727652673341,0.30728394,65696.0,65695.0,0.000827]
[1727652673578,0.26311035,65696.0,65695.0,0.000827]
[1727652674107,0.13924379,65696.0,65695.0,0.000827]
[1727652677337,0.13924379,65696.0,65695.0,0.103627]
[1727652677571,0.13924379,65696.0,65695.0,0.02667088]
[1727652677768,0.13124379,65696.0,65695.0,0.03380794]
[1727652678078,0.00147079,65696.0,65695.0,0.03380794]
[1727652678351,0.13124379,65696.0,65695.0,0.03580794]
[1727652678579,0.12324379,65696.0,65695.0,0.03580794]
[1727652678820,0.12324379,65696.0,65695.0,0.03980794]
[1727652679050,0.12324379,65696.0,65695.0,0.04080794]
[1727652679285,0.12324379,65696.0,65695.0,0.030627]
[1727652679524,0.12324379,65696.0,65695.0,0.007]
[1727652680210,0.14710747,65696.0,65695.0,0.007]
[1727652680704,0.25173659,65696.0,65695.0,0.007]
[1727652681185,0.29713271,65696.0,65695.0,0.007]
[1727652681401,0.29714453,65696.0,65695.0,0.007]
[1727652681646,0.25173659,65696.0,65695.0,0.007]
[1727652681878,0.25438053,65696.0,65695.0,0.007]
[1727652682105,0.29979042,65696.0,65695.0,0.007]
[1727652682593,0.25438053,65696.0,65695.0,0.007]
[1727652682833,0.29979059,65696.0,65695.0,0.007]
[1727652683302,0.25438053,65696.0,65695.0,0.007]
[1727652683526,0.29979091,65696.0,65695.0,0.007]
[1727652683799,0.25438053,65696.0,65695.0,0.007]
[1727652684048,0.23051685,65696.0,65695.0,0.007]
[1727652684259,0.12588773,65696.0,65695.0,0.007]
[1727652684710,0.17129865,65696.0,65695.0,0.007]
[1727652684731,0.12588773,65696.0,65695.0,0.007]
[1727652686676,0.17130325,65696.0,65695.0,0.007]
[1727652687405,0.17130325,65696.0,65695.0,0.007827]
[1727652687877,0.12588773,65696.0,65695.0,0.007827]
[1727652688430,0.19398192,65696.0,65695.0,0.007827]
[1727652690084,0.16156369,65696.0,65695.0,0.007827]
[1727652690553,0.12588773,65696.0,65695.0,0.007827]
[1727652690792,0.17129905,65696.0,65695.0,0.007827]
[1727652691751,0.19516371,65696.0,65695.0,0.007827]
[1727652691974,0.19514891,65696.0,65695.0,0.007827]
[1727652693394,0.14975239,65696.0,65695.0,0.007827]
[1727652693634,0.17128425,65696.0,65695.0,0.007827]
[1727652693850,0.17126965,65696.0,65695.0,0.007827]
[1727652694292,0.12588773,65696.0,65695.0,0.007827]
[1727652694506,0.27247257,65696.0,65695.0,0.007827]
[1727652694949,0.17126965,65696.0,65695.0,0.007827]
[1727652695180,0.12588773,65696.0,65695.0,0.007827]
[1727652701527,0.17126674,65696.0,65695.0,0.007827]
[1727652703311,0.12588773,65696.0,65695.0,0.007827]
[1727652703540,0.19396061,65696.0,65695.0,0.007827]
[1727652703828,0.32968376,65696.0,65695.0,0.007827]
[1727652704048,0.26161088,65696.0,65695.0,0.007827]
[1727652704504,0.35237472,65696.0,65695.0,0.007827]
[1727652705198,0.36161088,65696.0,65695.0,0.007827]
[1727652705399,0.44251088,65696.0,65695.0,0.007827]
[1727652705650,0.57865664,65696.0,65695.0,0.007827]
[1727652705870,0.57877529,65696.0,65695.0,0.007827]
[1727652706104,0.57877529,65696.0,65695.0,0.001827]
[1727652706902,0.57877529,65696.0,65695.0,0.000827]
[1727652707136,0.57877529,65696.0,65695.0,0.001827]
[1727652707570,0.57877529,65696.0,65695.0,0.000827]
[1727652707571,0.44251088,65696.0,65695.0,0.000827]
[1727652707803,0.44251088,65696.0,65695.0,0.003827]
[1727652708027,0.44251088,65696.0,65695.0,0.001827]
[1727652708250,0.44251088,65696.0,65695.0,0.002827]
[1727652708711,0.44251088,65696.0,65695.0,0.000827]
[1727652708712,0.45051088,65696.0,65695.0,0.000827]
[1727652709478,0.45851088,65696.0,65695.0,0.000827]
[1727652709944,0.45051088,65696.0,65695.0,0.000827]
[1727652710188,0.58676799,65696.0,65695.0,0.000827]
[1727652711151,0.59476799,65696.0,65695.0,0.000827]
[1727652711638,0.61863492,65696.0,65695.0,0.000827]
[1727652712593,0.48237781,65696.0,65695.0,0.000827]
[1727652712863,0.61862172,65696.0,65695.0,0.000827]
[1727652713112,0.48237781,65696.0,65695.0,0.000827]
[1727652714076,0.45851088,65696.0,65695.0,0.000827]
[1727652716884,0.32278773,65696.0,65695.0,0.000827]
[1727652717138,0.48287723,65696.0,65695.0,0.000827]
[1727652718558,0.40197723,65696.0,65695.0,0.000827]
[1727652720219,0.37811029,65696.0,65695.0,0.000827]
[1727652721130,0.37811252,65696.0,65695.0,0.000827]
[1727652721353,0.35157029,65696.0,65695.0,0.000827]
[1727652721864,0.24188773,65696.0,65695.0,0.000827]
[1727652722375,0.37811079,65696.0,65695.0,0.000827]
[1727652722862,0.24188773,65696.0,65695.0,0.000827]
[1727652723575,0.37811079,65696.0,65695.0,0.000827]
[1727652723818,0.24188773,65696.0,65695.0,0.000827]
[1727652724040,0.37811079,65696.0,65695.0,0.000827]
[1727652724537,0.24188773,65696.0,65695.0,0.000827]
[1727652724799,0.02011473,65696.0,65695.0,0.169827]
[1727652725055,0.13924379,65696.0,65695.0,0.169827]
[1727652725306,0.13924379,65696.0,65695.0,0.17690986]
[1727652725526,0.18467177,65696.0,65695.0,0.169827]
[1727652725779,0.18467353,65696.0,65695.0,0.169827]
[1727652726008,0.13924379,65696.0,65695.0,0.169827]
[1727652726253,0.13124379,65696.0,65695.0,0.17690986]
[1727652726515,0.13124379,65696.0,65695.0,0.17790986]
[1727652726730,0.13124379,65696.0,65695.0,0.170827]
[1727652726982,0.12324379,65696.0,65695.0,0.17690986]
[1727652727231,0.14710737,65696.0,65695.0,0.17690986]
[1727652727447,0.14710737,65696.0,65695.0,0.18390986]
[1727652728127,0.12324379,65696.0,65695.0,0.176827]
[1727652728840,0.12324379,65696.0,65695.0,0.18390986]
[1727652729863,0.12324379,65696.0,65695.0,0.176827]
[1727652730106,0.00147079,65696.0,65695.0,0.20690986]
[1727652730323,0.04542974,65709.0,65702.0,0.1743]
[1727652730547,0.22668027,65712.0,65710.0,0.023]
[1727652730776,0.22668027,65712.0,65710.0,0.0260378]
[1727652731025,0.001654,65713.0,65711.0,0.03079318]
[1727652731258,0.123395,65713.0,65712.0,0.023]
[1727652731477,0.001654,65713.0,65712.0,0.023]
[1727652731705,0.001654,65713.0,65710.0,0.023]
[1727652731960,0.001654,65713.0,65712.0,0.00379092]
[1727652731961,0.123395,65713.0,65712.0,0.00379092]
[1727652732190,0.123395,65713.0,65710.0,0.023]
[1727652732191,0.001654,65713.0,65710.0,0.023]
[1727652732453,0.121745,65711.0,65710.0,0.023]
[1727652732704,0.121745,65711.0,65710.0,0.022]
[1727652734105,0.125745,65711.0,65710.0,0.022]
[1727652734357,0.125745,65711.0,65710.0,0.02896859]
[1727652734802,0.128745,65711.0,65710.0,0.02896859]
[1727652736506,0.007,65711.0,65710.0,0.02896859]
[1727652736748,0.007,65711.0,65710.0,0.03148204]
[1727652737229,0.007,65711.0,65710.0,0.15322904]
[1727652737424,0.001654,65712.0,65710.0,0.03148204]
[1727652737895,0.003,65711.0,65710.0,0.03148204]
[1727652738153,0.001654,65712.0,65711.0,0.144745]
[1727652738371,0.001654,65712.0,65711.0,0.319845]
[1727652738636,0.001654,65712.0,65711.0,0.33003015]
[1727652738862,0.001654,65712.0,65711.0,0.32703015]
[1727652739081,0.002654,65712.0,65711.0,0.32703015]
[1727652739300,0.001654,65712.0,65711.0,0.32703015]
[1727652739513,0.002654,65712.0,65711.0,0.33403015]
[1727652739995,0.002654,65712.0,65711.0,0.32903015]
[1727652740675,0.003654,65712.0,65711.0,0.34003015]
[1727652740897,0.003654,65712.0,65711.0,0.34503015]
[1727652741889,0.003654,65712.0,65711.0,0.48507161]
[1727652742687,0.003654,65712.0,65711.0,0.48707161]
[1727652743199,0.003654,65712.0,65711.0,0.64235955]
[1727652743452,0.001654,65717.0,65716.0,0.48347646]
[1727652743705,0.22668027,65727.0,65726.0,0.220417]
[1727652743927,0.001654,65732.0,65731.0,0.25174146]
[1727652744379,0.001654,65732.0,65731.0,0.47517064]
[1727652744869,0.001654,65732.0,65731.0,0.47317064]
[1727652745374,0.002654,65732.0,65731.0,0.49032083]
[1727652745629,0.001654,65732.0,65731.0,0.47632083]
[1727652745899,0.001654,65732.0,65731.0,0.33127937]
[1727652746165,0.001654,65732.0,65731.0,0.02417137]
[1727652746166,0.002654,65732.0,65731.0,0.02417137]
[1727652746470,0.12536,65732.0,65731.0,0.028]
[1727652747196,0.12436,65732.0,65731.0,0.014]
[1727652747932,0.243422,65730.0,65725.0,0.22668027]
[1727652748174,0.121717,65726.0,65725.0,0.22668027]
[1727652748430,0.121722,65724.0,65718.0,0.121731]
[1727652748644,0.121722,65724.0,65723.0,0.023]
[1727652749317,0.121722,65724.0,65719.0,0.121729]
[1727652749318,0.121722,65724.0,65720.0,0.023]
[1727652750039,0.122722,65724.0,65723.0,0.013]
[1727652750328,0.122722,65724.0,65723.0,0.036]
[1727652750559,0.001,65724.0,65723.0,0.036]
[1727652750774,0.001,65724.0,65723.0,0.05]
[1727652750993,0.14657335,65724.0,65723.0,0.05]
[1727652751665,0.14557335,65724.0,65723.0,0.037]
[1727652751863,0.14657335,65724.0,65723.0,0.037]
[1727652752363,0.14557335,65724.0,65723.0,0.037]
[1727652752898,0.14657335,65724.0,65723.0,0.05]
[1727652753157,0.02485235,65724.0,65723.0,0.05]
[1727652754178,0.001,65724.0,65723.0,0.05]
[1727652759028,0.001827,65724.0,65723.0,0.05]
[1727652759505,0.123548,65724.0,65723.0,0.05]
[1727652759990,0.123548,65724.0,65723.0,0.027]
[1727652761203,0.203048,65724.0,65723.0,0.027]
[1727652761427,0.202048,65724.0,65723.0,0.014]
[1727652761649,0.121737,65715.0,65714.0,0.22668027]
[1727652761880,0.121737,65715.0,65714.0,0.24968027]
[1727652762327,0.243474,65716.0,65711.0,0.023]
[1727652762782,0.12174,65714.0,65711.0,0.023]
[1727652763281,0.121737,65716.0,65711.0,0.023]
[1727652763526,0.121731,65719.0,65713.0,0.023]
[1727652763764,0.243454,65721.0,65713.0,0.023]
[1727652764009,0.121733,65718.0,65714.0,0.023]
[1727652764249,0.121733,65718.0,65714.0,0.03]
[1727652764484,0.001,65715.0,65714.0,0.029]
[1727652764957,0.121733,65718.0,65714.0,0.023]
[1727652765396,0.121733,65718.0,65714.0,0.027]
[1727652765637,0.121733,65718.0,65714.0,0.023]
[1727652766135,0.001,65715.0,65714.0,0.036]
[1727652766373,0.001,65715.0,65714.0,0.157739]
[1727652767337,0.323772,65724.0,65715.0,0.121736]
[1727652767816,0.080327,65724.0,65714.0,0.026]
[1727652768054,0.121733,65718.0,65714.0,0.144739]
[1727652768288,0.121733,65718.0,65714.0,0.148739]
[1727652768520,0.001,65715.0,65714.0,0.150739]
[1727652768966,0.12173,65719.0,65714.0,0.144739]
[1727652769758,0.12173,65719.0,65711.0,0.243488]
[1727652769759,0.005827,65724.0,65720.0,0.121728]
[1727652770260,0.127548,65724.0,65717.0,0.243468]
[1727652770478,0.124548,65724.0,65718.0,0.12173]
[1727652770715,0.124548,65724.0,65716.0,0.023]
[1727652770716,0.122548,65724.0,65716.0,0.023]
[1727652770946,0.000827,65724.0,65721.0,0.023]
[1727652771183,0.000827,65724.0,65723.0,0.143722]
[1727652771658,0.000827,65724.0,65723.0,0.28376346]
[1727652771895,0.000827,65724.0,65723.0,0.37636346]
[1727652772338,0.000827,65724.0,65723.0,0.45506346]
[1727652773718,0.000827,65724.0,65723.0,0.46806346]
[1727652773968,0.000827,65724.0,65723.0,0.333022]
[1727652774225,0.000827,65724.0,65723.0,0.320022]
[1727652774493,0.000827,65724.0,65723.0,0.157722]
[1727652774735,0.001827,65724.0,65723.0,0.171722]
[1727652774954,0.001827,65724.0,65723.0,0.05]
[1727652776539,0.123548,65724.0,65723.0,0.05]
[1727652777016,0.123548,65724.0,65723.0,0.027]
[1727652777250,0.26358946,65724.0,65723.0,0.027]
[1727652777484,0.123548,65724.0,65723.0,0.027]
[1727652780236,0.121727,65721.0,65717.0,0.023]
[1727652780489,0.121727,65721.0,65718.0,0.023]
[1727652780755,0.000827,65724.0,65718.0,0.144731]
[1727652780989,0.000827,65724.0,65716.0,0.023]
[1727652780990,0.121724,65723.0,65716.0,0.023]
[1727652781231,0.000827,65724.0,65719.0,0.023]
[1727652781474,0.243449,65722.0,65717.0,0.023]
[1727652781705,0.243449,65722.0,65715.0,0.023]
[1727652781706,0.121725,65722.0,65719.0,0.023]
[1727652781935,0.000827,65724.0,65719.0,0.023]
[1727652782187,0.243451,65722.0,65719.0,0.023]
[1727652782410,0.36517,65723.0,65719.0,0.023]
[1727652782624,0.121727,65721.0,65719.0,0.023]
[1727652783083,0.122549,65724.0,65719.0,0.144729]
[1727652783273,0.121725,65722.0,65719.0,0.023]
[1727652783993,0.121725,65722.0,65719.0,0.03]
[1727652784238,0.001,65722.0,65719.0,0.023]
[1727652784505,0.001,65722.0,65719.0,0.152729]
[1727652784755,0.000827,65724.0,65721.0,0.121726]
[1727652785003,0.001,65722.0,65719.0,0.038]
[1727652785211,0.001,65722.0,65720.0,0.121727]
[1727652785686,0.14640061,65724.0,65720.0,0.121727]
[1727652785863,0.02467961,65724.0,65721.0,0.121726]
[1727652786127,0.14640061,65724.0,65721.0,0.006]
[1727652786834,0.02467961,65724.0,65721.0,0.006]
[1727652787123,0.02467961,65724.0,65721.0,0.126726]
[1727652787371,0.14640061,65724.0,65721.0,0.005]
[1727652787608,0.02467961,65724.0,65722.0,0.023]
[1727652787828,0.02467961,65724.0,65723.0,0.242122]
[1727652788072,0.02467961,65724.0,65723.0,0.245164]
[1727652788310,0.000827,65724.0,65723.0,0.245164]
[1727652788824,0.000827,65724.0,65723.0,0.337664]
[1727652789036,0.000827,65724.0,65723.0,0.434622]
[1727652789727,0.000827,65724.0,65723.0,0.440622]
[1727652789985,0.000827,65724.0,65723.0,0.434622]
[1727652790234,0.000827,65724.0,65723.0,0.448622]
[1727652790447,0.000827,65724.0,65723.0,0.434622]
[1727652790665,0.000827,65724.0,65723.0,0.439622]
[1727652790912,0.000827,65724.0,65723.0,0.451622]
[1727652791156,0.000827,65724.0,65723.0,0.446622]
[1727652791619,0.000827,65724.0,65723.0,0.460622]
[1727652793036,0.000827,65724.0,65723.0,0.462622]
[1727652798650,0.001654,65732.0,65728.0,0.57305446]
[1727652798878,0.001654,65732.0,65728.0,0.77385363]
[1727652799121,0.001654,65732.0,65728.0,0.92499736]
[1727652799343,0.001654,65732.0,65728.0,0.77385131]
[1727652799575,0.001654,65732.0,65728.0,0.7283424]
[1727652800077,0.001654,65732.0,65728.0,0.7423424]
[1727652801707,0.001654,65732.0,65728.0,0.7563424]
[1727652803943,0.001654,65732.0,65728.0,0.60105446]
[1727652808831,0.001654,65732.0,65728.0,0.381213]
[1727652809073,0.001654,65732.0,65728.0,0.289713]
[1727652810274,0.001654,65732.0,65728.0,0.279713]
[1727652810765,0.001654,65732.0,65728.0,0.289713]
[1727652811017,0.001654,65732.0,65728.0,0.279713]
[1727652814546,0.001654,65732.0,65728.0,0.274713]
[1727652815766,0.001654,65732.0,65728.0,0.172713]
[1727652816034,0.077,65731.0,65728.0,0.149713]
[1727652816772,0.077,65731.0,65728.0,0.135713]
[1727652817029,0.077,65731.0,65728.0,0.149713]
[1727652817278,0.077,65731.0,65728.0,0.135713]
[1727652817536,0.077,65731.0,65728.0,0.014]
[1727652817819,0.34377846,65729.0,65728.0,0.014]
[1727652818036,0.34377846,65729.0,65728.0,0.028]
[1727652818037,0.43877846,65729.0,65728.0,0.028]
[1727652818519,0.43877846,65729.0,65728.0,0.014]
[1727652818739,0.31706746,65729.0,65723.0,0.001652]
[1727652819013,0.121719,65725.0,65723.0,0.001652]
[1727652819261,0.0812,65727.0,65723.0,0.001652]
[1727652819744,0.202916,65727.0,65723.0,0.001652]
[1727652820033,0.0812,65727.0,65723.0,0.001652]
[1727652820305,0.0812,65727.0,65723.0,0.014652]
[1727652820561,0.0812,65727.0,65726.0,0.144717]
[1727652820805,0.000826,65729.0,65727.0,0.121715]
[1727652821045,0.000826,65729.0,65728.0,0.144713]
[1727652822732,0.000826,65729.0,65728.0,0.152713]
[1727652822987,0.000826,65729.0,65728.0,0.161713]
[1727652825565,0.000826,65729.0,65728.0,0.04]
[1727652825798,0.202237,65729.0,65728.0,0.04]
[1727652826032,0.202237,65729.0,65728.0,0.017]
[1727652827493,0.22608869,65729.0,65728.0,0.017]
[1727652828889,0.32578869,65729.0,65728.0,0.017]
[1727652830948,0.20407769,65729.0,65728.0,0.017]
[1727652831173,0.080526,65729.0,65728.0,0.017]
[1727652832402,0.202237,65729.0,65728.0,0.017]
[1727652835642,0.299037,65729.0,65728.0,0.017]
[1727652836763,0.43907846,65729.0,65728.0,0.017]
[1727652836986,0.43907846,65729.0,65728.0,0.008]
[1727652837212,0.121719,65725.0,65724.0,0.001652]
[1727652838135,0.14557216,65725.0,65724.0,0.001652]
[1727652838836,0.14557216,65725.0,65724.0,0.008652]
[1727652839027,0.14557216,65725.0,65724.0,0.014652]
[1727652839620,0.36891362,65725.0,65724.0,0.014652]
[1727652840313,0.34506046,65725.0,65724.0,0.014652]
[1727652840808,0.34487734,65725.0,65724.0,0.014652]
[1727652842730,0.44057734,65725.0,65724.0,0.014652]
[1727652843967,0.44057734,65725.0,65724.0,0.008652]
[1727652844458,0.44057734,65725.0,65724.0,0.001652]
[1727652844691,0.44057734,65725.0,65724.0,0.002652]
[1727652844938,0.44357734,65725.0,65724.0,0.002652]
[1727652845210,0.44357734,65725.0,65724.0,0.001652]
[1727652845211,0.54357734,65725.0,65724.0,0.001652]
[1727652845488,0.1946,65724.0,65712.0,0.22668027]
[1727652845731,0.36177146,65719.0,65712.0,0.22668027]
[1727652845988,0.53187146,65719.0,65712.0,0.22668027]
[1727652846236,0.5771499,65719.0,65712.0,0.22668027]
[1727652846466,0.53187146,65719.0,65712.0,0.22668027]
[1727652847573,0.53187146,65719.0,65713.0,0.22668027]
[1727652848067,0.53487146,65719.0,65713.0,0.22668027]
[1727652848573,0.53687146,65719.0,65713.0,0.22668027]
[1727652849662,0.39683,65719.0,65713.0,0.22668027]
[1727652850089,0.53687146,65719.0,65713.0,0.22668027]
[1727652852551,0.56072939,65719.0,65713.0,0.22668027]
[1727652853997,0.53687146,65719.0,65713.0,0.22668027]
[1727652854234,0.44227146,65719.0,65713.0,0.22668027]
[1727652854530,0.12673,65719.0,65714.0,0.22833227]
[1727652854777,0.12673,65719.0,65714.0,0.001652]
[1727652855510,0.12473,65719.0,65714.0,0.001652]
[1727652855759,0.12673,65719.0,65714.0,0.001652]
[1727652856219,0.12673,65719.0,65718.0,0.004652]
[1727652856467,0.12373,65719.0,65718.0,0.004652]
[1727652856922,0.12573,65719.0,65718.0,0.004652]
[1727652857410,0.002,65719.0,65718.0,0.004652]
[1727652858144,0.002,65719.0,65718.0,0.006652]
[1727652858401,0.002,65719.0,65718.0,0.15442043]
[1727652858663,0.002,65719.0,65718.0,0.330684]
[1727652859258,0.002,65719.0,65718.0,0.328684]
[1727652859496,0.122546,65725.0,65720.0,0.121728]
[1727652859721,0.121724,65723.0,65721.0,0.023]
[1727652860156,0.121724,65723.0,65719.0,0.023]
[1727652860579,0.121724,65723.0,65719.0,0.14473]
[1727652861006,0.122546,65725.0,65720.0,0.121727]
[1727652861252,0.001,65723.0,65722.0,0.023]
[1727652861698,0.001,65723.0,65721.0,0.01]
[1727652861891,0.122724,65723.0,65721.0,0.01]
[1727652862335,0.14557754,65723.0,65720.0,0.009]
[1727652862561,0.121726,65721.0,65720.0,0.009]
[1727652862775,0.121728,65720.0,65719.0,0.01]
[1727652863199,0.12173,65719.0,65718.0,0.001652]
[1727652864293,0.12273,65719.0,65718.0,0.007652]
[1727652865663,0.12273,65719.0,65718.0,0.014652]
[1727652867000,0.14658629,65719.0,65718.0,0.014652]
[1727652867481,0.14658629,65719.0,65718.0,0.007652]
[1727652867482,0.40819277,65719.0,65718.0,0.007652]
[1727652867714,0.50819277,65719.0,65718.0,0.007652]
[1727652868167,0.48433648,65719.0,65718.0,0.007652]
[1727652868399,0.48333648,65719.0,65718.0,0.001652]
[1727652869582,0.48533648,65719.0,65718.0,0.001652]
[1727652870087,0.39393,65719.0,65718.0,0.001652]
[1727652870554,0.39593,65719.0,65718.0,0.001652]
[1727652870779,0.41978884,65719.0,65718.0,0.001652]
[1727652871913,0.46514237,65719.0,65718.0,0.001652]
[1727652872649,0.41978884,65719.0,65718.0,0.001652]